fUSD/lending_fUSD_20250111
["ID","MTS","AMOUNT","RATE_DAILY","PERIOD"]
[348495273,1736583037867,-500.0,9.998e-05,2]
[348495274,1736583037876,-1998.02,9.998e-05,2]
[348495275,1736583037885,-160.57266012,9.998e-05,2]
[348495276,1736583037895,-500.0,9.998e-05,2]
[348495277,1736583037904,-602.74778317,9.998e-05,2]
[348495278,1736583037913,-679.05,9.998e-05,2]
[348495279,1736583037923,-978.36,9.998e-05,2]
[348495280,1736583037932,-500.0,9.998e-05,2]
[348495281,1736583037942,-503.42093987,9.998e-05,2]
[348495282,1736583037952,-500.0,9.998e-05,2]
[348495283,1736583037961,-282.70251686,9.998e-05,2]
[348495284,1736583037970,-500.0,9.998e-05,2]
[348495285,1736583037980,-794.95,9.998e-05,2]
[348495286,1736583037989,-1608.73,9.998e-05,2]
[348495287,1736583037999,-500.0,9.998e-05,2]
[348495288,1736583038010,-500.0,9.998e-05,2]
[348495289,1736583038024,-500.0,9.998e-05,2]
[348495291,1736583038034,-250000.0,9.999e-05,2]
[348495292,1736583038043,-217.24966357,9.999e-05,2]
[348495293,1736583038053,-500.0,9.999e-05,2]
[348495294,1736583038064,-516.03200691,9.999e-05,2]
[348495295,1736583038074,-500.0,9.999e-05,2]
[348495296,1736583038083,-511.11751844,9.999e-05,2]
[348495297,1736583038095,-500.0,9.999e-05,2]
[348495298,1736583038105,-500.0,9.999e-05,2]
[348495299,1736583038115,-235.64513756,9.999e-05,2]
[348495300,1736583038126,-509.11941015,9.999e-05,2]
[348495302,1736583038137,-500.0,9.999e-05,2]
[348495303,1736583038147,-503.47840638,9.999e-05,2]
[348495304,1736583038157,-501.49068381,9.999e-05,2]
[348495305,1736583038167,-505.67411603,9.999e-05,2]
[348495306,1736583038177,-506.90537093,9.999e-05,2]
[348495307,1736583038187,-500.0,9.999e-05,2]
[348495308,1736583038196,-502.98891223,9.999e-05,2]
[348495309,1736583038206,-500.0,9.999e-05,2]
[348495310,1736583038216,-500.0,9.999e-05,2]
[348495311,1736583038226,-500.47463044,9.999e-05,2]
[348495312,1736583038236,-504.84351205,9.999e-05,2]
[348495313,1736583038246,-504.54269383,9.999e-05,2]
[348495314,1736583038255,-500.0,9.999e-05,2]
[348495315,1736583038265,-605.53677208,9.999e-05,2]
[348495316,1736583038274,-504.9032517,9.999e-05,2]
[348495317,1736583038284,-503.88604584,9.999e-05,2]
[348495318,1736583038293,-504.97481241,9.999e-05,2]
[348495319,1736583038302,-500.0,9.999e-05,2]
[348495320,1736583038313,-500.0,9.999e-05,2]
[348495321,1736583038322,-500.0,9.999e-05,2]
[348495322,1736583038331,-500.0,9.999e-05,2]
[348495323,1736583038340,-500.0,9.999e-05,2]
[348495324,1736583038350,-500.0,9.999e-05,2]
[348495325,1736583038360,-501.33246564,9.999e-05,2]
[348495326,1736583038369,-500.0,9.999e-05,2]
[348495327,1736583038379,-500.0,9.999e-05,2]
[348495328,1736583038389,-500.0,9.999e-05,2]
[348495329,1736583038399,-502.93145544,9.999e-05,2]
[348495330,1736583038408,-500.0,9.999e-05,2]
[348495331,1736583038418,-500.0,9.999e-05,2]
[348495332,1736583038427,-500.0,9.999e-05,2]
[348495333,1736583038437,-500.0,9.999e-05,2]
[348495334,1736583038447,-500.0,9.999e-05,2]
[348495335,1736583038457,-501.79558602,9.999e-05,2]
[348495336,1736583038467,-500.0,9.999e-05,2]
[348495337,1736583038476,-500.0,9.999e-05,2]
[348495338,1736583038486,-500.0,9.999e-05,2]
[348495339,1736583038496,-500.0,9.999e-05,2]
[348495340,1736583038506,-500.0,9.999e-05,2]
[348495341,1736583038516,-505.71429642,9.999e-05,2]
[348495342,1736583038525,-502.40358753,9.999e-05,2]
[348495343,1736583038534,-500.0,9.999e-05,2]
[348495344,1736583038544,-500.0,9.999e-05,2]
[348495345,1736583038553,-500.0,9.999e-05,2]
[348495346,1736583038563,-500.0,9.999e-05,2]
[348495348,1736583038572,-500.0,9.999e-05,2]
[348495350,1736583038581,-500.0,9.999e-05,2]
[348495352,1736583038591,-500.0,9.999e-05,2]
[348495354,1736583038600,-500.0,9.999e-05,2]
[348495356,1736583038609,-500.0,9.999e-05,2]
[348495358,1736583038619,-500.0,9.999e-05,2]
[348495360,1736583038629,-500.0,9.999e-05,2]
[348495362,1736583038638,-500.0,9.999e-05,2]
[348495364,1736583038648,-500.0,9.999e-05,2]
[348495366,1736583038657,-417.22598471,9.999e-05,2]
[348495368,1736583038666,-167.05675434,9.999e-05,2]
[348495370,1736583038676,-500.0,9.999e-05,2]
[348495372,1736583038685,-500.0,9.999e-05,2]
[348495374,1736583038694,-500.0,9.999e-05,2]
[348495376,1736583038704,-500.0,9.999e-05,2]
[348495378,1736583038713,-839.91,9.999e-05,2]
[348495380,1736583038723,-500.0,9.999e-05,2]
[348495382,1736583038732,-500.0,9.999e-05,2]
[348495384,1736583038741,-500.0,9.999e-05,2]
[348495386,1736583038750,-500.0,9.999e-05,2]
[348495388,1736583038759,-500.0,9.999e-05,2]
[348495390,1736583038768,-500.0,9.999e-05,2]
[348495393,1736583038779,-500.0,9.999e-05,2]
[348495395,1736583038788,-500.0,9.999e-05,2]
[348495396,1736583038797,-500.0,9.999e-05,2]
[348495398,1736583038806,-500.0,9.999e-05,2]
[348495400,1736583038816,-500.0,9.999e-05,2]
[348495402,1736583038825,-500.0,9.999e-05,2]
[348495405,1736583038835,-500.0,9.999e-05,2]
[348495406,1736583038844,-500.0,9.999e-05,2]
[348495408,1736583038854,-708.14,9.999e-05,2]
[348495410,1736583038863,-500.0,9.999e-05,2]
[348495412,1736583038873,-500.0,9.999e-05,2]
[348495414,1736583038882,-500.0,9.999e-05,2]
[348495416,1736583038892,-500.0,9.999e-05,2]
[348495418,1736583038902,-500.0,9.999e-05,2]
[348495420,1736583038911,-500.0,9.999e-05,2]
[348495422,1736583038921,-500.0,9.999e-05,2]
[348495424,1736583038930,-1140.57,9.999e-05,2]
[348495426,1736583038939,-500.0,9.999e-05,2]
[348495428,1736583038948,-500.0,9.999e-05,2]
[348495430,1736583038958,-500.0,9.999e-05,2]
[348495432,1736583038967,-500.0,9.999e-05,2]
[348495434,1736583038976,-500.0,9.999e-05,2]
[348495436,1736583038986,-500.0,9.999e-05,2]
[348495437,1736583038995,-2192.44,9.999e-05,2]
[348495439,1736583039005,-601.10918555,9.999e-05,2]
[348495442,1736583039016,-500.0,9.999e-05,2]
[348495444,1736583039031,-500.0,9.999e-05,2]
[348495446,1736583039041,-500.0,9.999e-05,2]
[348495448,1736583039050,-500.0,9.999e-05,2]
[348495450,1736583039060,-500.0,9.999e-05,2]
[348495452,1736583039069,-500.0,9.999e-05,2]
[348495454,1736583039079,-500.0,9.999e-05,2]
[348495456,1736583039088,-551.94506423,9.999e-05,2]
[348495458,1736583039098,-500.0,9.999e-05,2]
[348495460,1736583039107,-500.0,9.999e-05,2]
[348495462,1736583039117,-643.46,9.999e-05,2]
[348495464,1736583039127,-500.0,9.999e-05,2]
[348495466,1736583039137,-795.22,9.999e-05,2]
[348495468,1736583039146,-500.0,9.999e-05,2]
[348495470,1736583039156,-643.56722945,9.999e-05,2]
[348495476,1736583039514,-52.32277055,9.999e-05,2]
[348495477,1736583039526,-500.0,9.999e-05,2]
[348495478,1736583039537,-500.0,9.999e-05,2]
[348495479,1736583039548,-1227.21,9.999e-05,2]
[348495480,1736583039560,-1663.03,9.999e-05,2]
[348495481,1736583039570,-500.0,9.999e-05,2]
[348495482,1736583039580,-500.0,9.999e-05,2]
[348495483,1736583039591,-700.35,9.999e-05,2]
[348495484,1736583039602,-644.63,9.999e-05,2]
[348495485,1736583039615,-1116.54,9.999e-05,2]
[348495486,1736583039629,-500.0,9.999e-05,2]
[348495487,1736583039641,-543.65,9.999e-05,2]
[348495488,1736583039651,-566.17,9.999e-05,2]
[348495489,1736583039660,-600.62,9.999e-05,2]
[348495490,1736583039670,-1670.19,9.999e-05,2]
[348495491,1736583039680,-500.0,9.999e-05,2]
[348495492,1736583039691,-501.41082698,9.999e-05,2]
[348495493,1736583039703,-373.37474946,9.999e-05,2]
[348495494,1736583039717,-500.0,9.999e-05,2]
[348495495,1736583039728,-710.5,9.999e-05,2]
[348495496,1736583039739,-1000.0,9.999e-05,2]
[348495497,1736583039750,-500.0,9.999e-05,2]
[348495498,1736583039761,-500.0,9.999e-05,2]
[348495499,1736583039772,-1374.96,9.999e-05,2]
[348495500,1736583039783,-500.0,9.999e-05,2]
[348495501,1736583039795,-500.0,9.999e-05,2]
[348495502,1736583039806,-937.63,9.999e-05,2]
[348495503,1736583039817,-619.52,9.999e-05,2]
[348495504,1736583039828,-551.76,9.999e-05,2]
[348495505,1736583039840,-222345.73815301,0.0001,2]
[348495506,1736583039864,-46888.97526912,0.0001,2]
[348495507,1736583039879,-4153.82927351,0.0001,2]
[348495510,1736583040529,-500.0,9.997e-05,2]
[348495511,1736583040540,-500.0,9.997e-05,2]
[348495512,1736583040551,-500.74734278,9.998e-05,2]
[348495513,1736583040562,-37635.11250049,0.0001,2]
[348495514,1736583040575,-500.0,0.0001,2]
[348495515,1736583040647,-1385.60623345,0.0001,2]
[348495516,1736583040716,-390.92778239,0.0001,2]
[348495517,1736583040729,-9830.0985431,0.0001,2]
[348495518,1736583041062,-500.0,9.997e-05,2]
[348495519,1736583041072,-43996.15585297,0.0001,2]
[348495522,1736583043216,-373.08648233,9.997e-05,2]
[348495523,1736583043322,-254.75062126,9.997e-05,2]
[348495586,1736583046244,-410.10289641,9.997e-05,2]
[348495587,1736583046253,-500.0,9.997e-05,2]
[348495588,1736583046262,-500.0,9.997e-05,2]
[348495589,1736583046272,-500.0,9.997e-05,2]
[348495590,1736583046281,-500.0,9.997e-05,2]
[348495591,1736583046291,-501.33127077,9.998e-05,2]
[348495592,1736583046300,-160.71025,9.998e-05,2]
[348495593,1736583046310,-500.335631,9.998e-05,2]
[348495594,1736583046320,-1360.95879898,0.0001,2]
[348495595,1736583046335,-4612.71443,0.0001,2]
[348495599,1736583091401,150.0,0.00018623,120]
[348495600,1736583150800,150.0,0.00019215,120]
[348495601,1736583211328,150.0,0.00018361,120]
[348495602,1736583270903,150.0,0.00017929,120]
[348495603,1736583330895,150.0,0.00018015,120]
[348495604,1736583336832,823.39,8.219e-05,2]
[348495605,1736583390874,150.0,0.00019483,120]
[348495606,1736583450838,150.0,0.00019692,120]
[348495607,1736583510806,150.0,0.00019667,120]
[348495608,1736583570827,150.0,0.00018607,120]
[348495609,1736583630805,150.0,0.00017862,120]
[348495610,1736583691312,150.0,0.00018801,120]
[348495611,1736583750909,150.0,0.00019006,120]
[348495612,1736583811010,150.0,0.0001961,120]
[348495613,1736583870838,150.0,0.00018399,120]
[348495614,1736583931321,150.0,0.00018367,120]
[348495616,1736583990896,150.0,0.00017994,120]
[348495617,1736584050830,150.0,0.00018227,120]
[348495618,1736584092468,1000.0,0.0002,120]
[348495619,1736584105199,5201.58,8.523e-05,2]
[348495620,1736584110740,150.0,0.00019382,120]
[348495621,1736584170776,150.0,0.00018598,120]
[348495625,1736584231018,150.0,0.00018045,120]
[348495630,1736584231655,-271.5,8.568e-05,2]
[348495631,1736584231667,-528.5,8.568e-05,2]
[348495632,1736584231676,-250.0,9.228e-05,2]
[348495633,1736584231685,-1000.0,9.265e-05,2]
[348495634,1736584231695,-184.88,9.309e-05,2]
[348495635,1736584231704,-500.0,9.664e-05,2]
[348495636,1736584231713,-996.9283468,9.787e-05,2]
[348495637,1736584231722,-600.0,9.8e-05,3]
[348495638,1736584231731,-854.0322,9.899e-05,2]
[348495639,1736584231741,-1200.0,9.9e-05,3]
[348495640,1736584231750,-800.0,9.938e-05,2]
[348495641,1736584231759,-150.0,9.956e-05,2]
[348495642,1736584231768,-500.0,9.957e-05,2]
[348495643,1736584231778,-500.0,9.957e-05,2]
[348495644,1736584231787,-85.61615973,9.957e-05,2]
[348495645,1736584231799,-359.33719048,9.957e-05,2]
[348495646,1736584231811,-55.04664979,9.957e-05,2]
[348495647,1736584231820,-500.0,9.957e-05,2]
[348495648,1736584231829,-500.0,9.957e-05,2]
[348495649,1736584231839,-500.0,9.957e-05,2]
[348495650,1736584231847,-296.8886203,9.957e-05,2]
[348495651,1736584231858,-203.1113797,9.957e-05,2]
[348495652,1736584231868,-500.0,9.957e-05,2]
[348495653,1736584231877,-487.76813694,9.957e-05,2]
[348495654,1736584231920,-12.23186306,9.957e-05,2]
[348495655,1736584231930,-500.0,9.957e-05,2]
[348495656,1736584231939,-87.76813694,9.957e-05,2]
[348495657,1736584231950,-494.07186306,9.957e-05,2]
[348495658,1736584231960,-24.86813694,9.997e-05,2]
[348495659,1736584231971,-375.839991,9.997e-05,2]
[348495660,1736584231982,-329.09187206,9.997e-05,2]
[348495661,1736584231992,-500.0,9.997e-05,2]
[348495662,1736584232001,-500.0,9.997e-05,2]
[348495663,1736584232010,-613.57961508,9.997e-05,2]
[348495664,1736584232019,-500.0,9.997e-05,2]
[348495665,1736584232029,-500.0,9.997e-05,2]
[348495666,1736584232038,-500.0,9.997e-05,2]
[348495667,1736584232047,-520.43,9.997e-05,2]
[348495668,1736584232057,-500.0,9.997e-05,2]
[348495669,1736584232067,-500.0,9.997e-05,2]
[348495670,1736584232076,-500.0,9.997e-05,2]
[348495671,1736584232086,-500.0,9.997e-05,2]
[348495672,1736584232096,-503.46963081,9.997e-05,2]
[348495673,1736584232105,-500.0,9.997e-05,2]
[348495674,1736584232114,-189.39960849,9.997e-05,2]
[348495679,1736584232151,-310.60039151,9.997e-05,2]
[348495681,1736584232160,-500.0,9.997e-05,2]
[348495683,1736584232169,-500.0,9.997e-05,2]
[348495685,1736584232178,-500.0,9.997e-05,2]
[348495687,1736584232187,-500.0,9.997e-05,2]
[348495689,1736584232196,-500.0,9.997e-05,2]
[348495691,1736584232205,-500.0,9.997e-05,2]
[348495693,1736584232214,-500.0,9.997e-05,2]
[348495695,1736584232224,-500.0,9.997e-05,2]
[348495697,1736584232233,-500.0,9.997e-05,2]
[348495699,1736584232242,-500.0,9.997e-05,2]
[348495701,1736584232251,-500.0,9.997e-05,2]
[348495703,1736584232260,-500.0,9.997e-05,2]
[348495705,1736584232270,-500.0,9.997e-05,2]
[348495707,1736584232278,-507.05251194,9.997e-05,2]
[348495709,1736584232287,-500.0,9.997e-05,2]
[348495711,1736584232296,-500.0,9.997e-05,2]
[348495713,1736584232306,-500.0,9.997e-05,2]
[348495715,1736584232315,-500.0,9.997e-05,2]
[348495717,1736584232324,-791.02,9.997e-05,2]
[348495718,1736584232333,-493.18999798,9.997e-05,2]
[348495720,1736584232342,-500.0,9.997e-05,2]
[348495722,1736584232351,-500.0,9.997e-05,2]
[348495724,1736584232360,-500.0,9.997e-05,2]
[348495726,1736584232369,-500.0,9.997e-05,2]
[348495729,1736584232379,-1213.89,9.997e-05,2]
[348495731,1736584232388,-500.0,9.997e-05,2]
[348495733,1736584232398,-500.0,9.997e-05,2]
[348495734,1736584232407,-500.0,9.997e-05,2]
[348495736,1736584232416,-980.94,9.997e-05,2]
[348495738,1736584232425,-500.0,9.997e-05,2]
[348495740,1736584232434,-500.0,9.997e-05,2]
[348495742,1736584232443,-500.0,9.997e-05,2]
[348495744,1736584232452,-500.0,9.997e-05,2]
[348495746,1736584232461,-500.0,9.997e-05,2]
[348495748,1736584232470,-687.85,9.997e-05,2]
[348495750,1736584232479,-500.0,9.997e-05,2]
[348495752,1736584232488,-500.0,9.997e-05,2]
[348495754,1736584232497,-500.0,9.997e-05,2]
[348495756,1736584232506,-500.0,9.997e-05,2]
[348495758,1736584232515,-500.0,9.997e-05,2]
[348495760,1736584232524,-500.0,9.997e-05,2]
[348495762,1736584232533,-500.0,9.997e-05,2]
[348495764,1736584232542,-526.09288813,9.997e-05,2]
[348495766,1736584232551,-2015.53,9.997e-05,2]
[348495768,1736584232561,-500.0,9.997e-05,2]
[348495769,1736584232570,-1132.68,9.997e-05,2]
[348495771,1736584232579,-1037.53,9.997e-05,2]
[348495773,1736584232588,-2128.44,9.997e-05,2]
[348495775,1736584232597,-1179.49,9.997e-05,2]
[348495777,1736584232607,-2528.49,9.997e-05,2]
[348495779,1736584232616,-1276.0,9.997e-05,2]
[348495781,1736584232625,-500.0,9.997e-05,2]
[348495783,1736584232634,-503.08801832,9.998e-05,2]
[348495785,1736584232646,-500.0,9.998e-05,2]
[348495787,1736584232655,-500.0,9.998e-05,2]
[348495789,1736584232664,-642.7739409,9.998e-05,2]
[348495791,1736584232673,-503.79004853,9.998e-05,2]
[348495793,1736584232682,-500.18474801,9.998e-05,2]
[348495795,1736584232693,-500.37763053,9.998e-05,2]
[348495797,1736584232702,-268.27327066,9.998e-05,2]
[348495799,1736584232711,-501.64746135,9.998e-05,2]
[348495801,1736584232721,-500.48308501,9.998e-05,2]
[348495803,1736584232730,-502.41368314,9.998e-05,2]
[348495805,1736584232739,-160.55694201,9.998e-05,2]
[348495807,1736584232747,-501.54047342,9.998e-05,2]
[348495809,1736584232756,-500.99990989,9.998e-05,2]
[348495811,1736584232765,-500.57460819,9.998e-05,2]
[348495813,1736584232774,-502.23657365,9.998e-05,2]
[348495814,1736584232783,-501.30616063,9.998e-05,2]
[348495817,1736584232792,-500.90053633,9.998e-05,2]
[348495818,1736584232801,-500.47326493,9.998e-05,2]
[348495821,1736584232811,-501.95728721,9.998e-05,2]
[348495822,1736584232820,-501.56075317,9.998e-05,2]
[348495825,1736584232829,-500.0,9.998e-05,2]
[348495827,1736584232839,-502.15053825,9.998e-05,2]
[348495829,1736584232848,-501.76178357,9.998e-05,2]
[348495830,1736584232857,-501.8942469,9.998e-05,2]
[348495832,1736584232866,-502.94301911,9.998e-05,2]
[348495834,1736584232875,-502.2697918,9.998e-05,2]
[348495836,1736584232883,-500.83039609,9.998e-05,2]
[348495838,1736584232892,-500.0,9.998e-05,2]
[348495840,1736584232902,-451.80807502,9.998e-05,2]
[348495842,1736584232910,-500.0,9.998e-05,2]
[348495844,1736584232919,-500.0,9.998e-05,2]
[348495846,1736584232928,-500.0,9.998e-05,2]
[348495848,1736584232937,-556.18,9.998e-05,2]
[348495850,1736584232946,-500.0,9.998e-05,2]
[348495852,1736584232955,-500.0,9.998e-05,2]
[348495854,1736584232964,-500.0,9.998e-05,2]
[348495856,1736584232973,-594.16,9.998e-05,2]
[348495858,1736584232983,-642.07,9.998e-05,2]
[348495860,1736584232992,-1086.95,9.998e-05,2]
[348495862,1736584233000,-833.96,9.998e-05,2]
[348495864,1736584233009,-2082.98,9.998e-05,2]
[348495866,1736584233018,-885.0,9.998e-05,2]
[348495867,1736584233027,-1070.01,9.998e-05,2]
[348495869,1736584233036,-7156.4203425,9.998e-05,2]
[348495871,1736584233046,-712.73,9.998e-05,2]
[348495874,1736584233056,-770.9,9.998e-05,2]
[348495875,1736584233066,-1169.48,9.998e-05,2]
[348495877,1736584233075,-500.0,9.998e-05,2]
[348495879,1736584233085,-500.0,9.998e-05,2]
[348495881,1736584233094,-1237.23,9.998e-05,2]
[348495883,1736584233104,-674.15,9.998e-05,2]
[348495885,1736584233113,-985.62,9.998e-05,2]
[348495887,1736584233122,-1390.55,9.998e-05,2]
[348495889,1736584233132,-500.0,9.998e-05,2]
[348495891,1736584233141,-3905.11,9.998e-05,2]
[348495893,1736584233150,-500.0,9.998e-05,2]
[348495895,1736584233159,-747.31,9.998e-05,2]
[348495922,1736584233399,-500.0,9.998e-05,2]
[348495924,1736584233408,-500.0,9.998e-05,2]
[348495926,1736584233417,-1803.48,9.998e-05,2]
[348495928,1736584233427,-797.67,9.998e-05,2]
[348495929,1736584233436,-696.28,9.998e-05,2]
[348495930,1736584233445,-599.07,9.998e-05,2]
[348495931,1736584233455,-559.360056,9.998e-05,2]
[348495932,1736584233464,-1037.3,9.998e-05,2]
[348495933,1736584233473,-2016.09,9.998e-05,2]
[348495934,1736584233482,-156.484712,9.998e-05,2]
[348495935,1736584233491,-156.76968,9.998e-05,2]
[348495936,1736584233501,-500.0,9.998e-05,2]
[348495937,1736584233511,-1351.14,9.998e-05,2]
[348495938,1736584233520,-500.0,9.998e-05,2]
[348495939,1736584233529,-500.0,9.998e-05,2]
[348495940,1736584233539,-816.82,9.998e-05,2]
[348495941,1736584233548,-663.435756,9.998e-05,2]
[348495942,1736584233557,-2570.39,9.998e-05,2]
[348495943,1736584233567,-500.0,9.998e-05,2]
[348495944,1736584233577,-1485.17,9.998e-05,2]
[348495945,1736584233586,-500.0,9.998e-05,2]
[348495946,1736584233595,-2018.99,9.998e-05,2]
[348495947,1736584233604,-724.38,9.998e-05,2]
[348495948,1736584233613,-650.86,9.998e-05,2]
[348495949,1736584233622,-1041.56,9.998e-05,2]
[348495950,1736584233631,-500.0,9.998e-05,2]
[348495951,1736584233643,-977.14,9.998e-05,2]
[348495952,1736584233652,-718.54,9.998e-05,2]
[348495953,1736584233661,-500.0,9.998e-05,2]
[348495954,1736584233671,-500.0,9.998e-05,2]
[348495955,1736584233680,-500.0,9.998e-05,2]
[348495956,1736584233689,-500.0,9.998e-05,2]
[348495957,1736584233699,-500.0,9.998e-05,2]
[348495958,1736584233708,-620.96,9.998e-05,2]
[348495959,1736584233717,-1277.46,9.998e-05,2]
[348495960,1736584233726,-666.36,9.998e-05,2]
[348495961,1736584233736,-1884.38,9.998e-05,2]
[348495962,1736584233745,-500.0,9.998e-05,2]
[348495963,1736584233755,-500.0,9.998e-05,2]
[348495964,1736584233763,-1535.86,9.998e-05,2]
[348495965,1736584233772,-963.85,9.998e-05,2]
[348495966,1736584233781,-500.0,9.998e-05,2]
[348495967,1736584233791,-895.98,9.998e-05,2]
[348495968,1736584233800,-500.0,9.998e-05,2]
[348495969,1736584233809,-500.0,9.998e-05,2]
[348495970,1736584233818,-500.0,9.998e-05,2]
[348495971,1736584233826,-500.0,9.998e-05,2]
[348495972,1736584233835,-500.0,9.998e-05,2]
[348495973,1736584233844,-500.0,9.998e-05,2]
[348495974,1736584233853,-500.0,9.998e-05,2]
[348495975,1736584233863,-500.0,9.998e-05,2]
[348495976,1736584233871,-500.0,9.998e-05,2]
[348495977,1736584233880,-407.1587737,9.998e-05,2]
[348495978,1736584233889,-604.85,9.998e-05,2]
[348495979,1736584233898,-500.0,9.998e-05,2]
[348495980,1736584233908,-500.0,9.998e-05,2]
[348495981,1736584233917,-500.0,9.998e-05,2]
[348495982,1736584233925,-500.0,9.998e-05,2]
[348495983,1736584233935,-500.0,9.998e-05,2]
[348495984,1736584233943,-500.0,9.998e-05,2]
[348495985,1736584233953,-3135.94,9.998e-05,2]
[348495986,1736584233962,-500.0,9.998e-05,2]
[348495987,1736584233971,-500.0,9.998e-05,2]
[348495988,1736584233981,-506.4805156,9.998e-05,2]
[348495989,1736584233990,-500.0,9.998e-05,2]
[348495990,1736584234000,-502.55654369,9.998e-05,2]
[348495991,1736584234010,-500.0,9.998e-05,2]
[348495992,1736584234020,-500.0,9.998e-05,2]
[348495993,1736584234029,-500.0,9.998e-05,2]
[348495994,1736584234038,-500.0,9.998e-05,2]
[348495995,1736584234047,-500.0,9.998e-05,2]
[348495996,1736584234056,-500.0,9.998e-05,2]
[348495997,1736584234066,-816.99,9.998e-05,2]
[348495998,1736584234075,-500.0,9.998e-05,2]
[348495999,1736584234084,-766.56,9.998e-05,2]
[348496000,1736584234093,-500.0,9.998e-05,2]
[348496001,1736584234102,-501.03292498,9.998e-05,2]
[348496002,1736584234111,-112840.84225938,9.998e-05,2]
[348496003,1736584234125,-3476.13558,9.998e-05,2]
[348496013,1736584237404,-496.61,9.093e-05,2]
[348496014,1736584237415,-1411.06398131,9.998e-05,2]
[348496015,1736584237426,-863.16601869,9.998e-05,2]
[348496016,1736584237435,-1599.89,9.998e-05,2]
[348496017,1736584237445,-500.0,9.998e-05,2]
[348496018,1736584237454,-528.28,9.998e-05,2]
[348496019,1736584237463,-500.0,9.998e-05,2]
[348496020,1736584237472,-48891.53346078,9.998e-05,2]
[348496021,1736584237483,-282.55999991,9.998e-05,2]
[348496022,1736584237495,-4266.93135916,9.998e-05,2]
[348496023,1736584237526,-2048.46155396,9.998e-05,2]
[348496024,1736584237577,-20982.62042768,9.998e-05,2]
[348496025,1736584237586,-9124.90536368,9.998e-05,2]
[348496026,1736584237595,-17436.52252311,9.998e-05,2]
[348496027,1736584237605,-500.0,9.999e-05,2]
[348496028,1736584237614,-502.64787133,9.999e-05,2]
[348496029,1736584237624,-500.0,9.999e-05,2]
[348496030,1736584237633,-501.06588504,9.999e-05,2]
[348496031,1736584237644,-501.1219419,9.999e-05,2]
[348496032,1736584237655,-500.0,9.999e-05,2]
[348496033,1736584237666,-501.10638006,9.999e-05,2]
[348496034,1736584237676,-501.22051678,9.999e-05,2]
[348496035,1736584237685,-501.22761337,9.999e-05,2]
[348496036,1736584237694,-501.32751138,9.999e-05,2]
[348496037,1736584237703,-1613.86,9.999e-05,2]
[348496038,1736584237712,-500.0,9.999e-05,2]
[348496039,1736584237723,-500.0,9.999e-05,2]
[348496040,1736584237735,-501.16057869,9.999e-05,2]
[348496041,1736584237749,-500.0,9.999e-05,2]
[348496042,1736584237762,-501.12093711,9.999e-05,2]
[348496043,1736584237773,-500.55501036,9.999e-05,2]
[348496044,1736584237783,-500.0,9.999e-05,2]
[348496045,1736584237793,-501.12004346,9.999e-05,2]
[348496046,1736584237805,-500.80702416,9.999e-05,2]
[348496047,1736584237817,-500.0,9.999e-05,2]
[348496048,1736584237828,-500.82366606,9.999e-05,2]
[348496049,1736584237840,-500.63878802,9.999e-05,2]
[348496050,1736584237852,-500.0,9.999e-05,2]
[348496051,1736584237863,-500.89250681,9.999e-05,2]
[348496052,1736584237875,-500.0,9.999e-05,2]
[348496053,1736584237887,-500.44904856,9.999e-05,2]
[348496054,1736584237897,-500.0,9.999e-05,2]
[348496055,1736584237908,-500.0,9.999e-05,2]
[348496056,1736584237919,-500.67231445,9.999e-05,2]
[348496057,1736584237928,-500.0,9.999e-05,2]
[348496058,1736584237940,-500.0,9.999e-05,2]
[348496059,1736584237953,-500.0,9.999e-05,2]
[348496060,1736584237964,-500.47647411,9.999e-05,2]
[348496061,1736584237975,-500.0,9.999e-05,2]
[348496063,1736584237986,-500.51777002,9.999e-05,2]
[348496064,1736584237998,-500.0,9.999e-05,2]
[348496066,1736584238010,-500.0,9.999e-05,2]
[348496068,1736584238021,-500.30569217,9.999e-05,2]
[348496069,1736584238032,-500.0,9.999e-05,2]